fUSD/lending_fUSD_20250629
["ID","MTS","AMOUNT","RATE_DAILY","PERIOD"]
[368494442,1751190777090,-1125.2,0.00031232,3]
[368494443,1751190777099,-736.63,0.00031232,3]
[368494444,1751190777108,-1386.0,0.00031232,3]
[368494445,1751190777118,-1073.8,0.00031232,3]
[368494446,1751190777127,-1530.28,0.00031232,3]
[368494447,1751190777136,-2006.57,0.00031232,3]
[368494448,1751190777145,-624.36521433,0.00031232,3]
[368494449,1751190777155,-2091.51,0.00031232,3]
[368494450,1751190777164,-2126.77,0.00031232,3]
[368494451,1751190777173,-1779.52,0.00031232,3]
[368494452,1751190777182,-490.0,0.00031232,3]
[368494453,1751190777191,-1673.45,0.00031232,3]
[368494454,1751190777200,-1303.39,0.00031232,3]
[368494455,1751190777209,-490.0,0.00031232,3]
[368494456,1751190777218,-776.8,0.00031232,3]
[368494457,1751190777227,-4507.51,0.00031232,3]
[368494458,1751190777236,-2000.1,0.00031232,3]
[368494459,1751190777246,-490.0,0.00031232,3]
[368494460,1751190777255,-3480.9,0.00031232,3]
[368494461,1751190777265,-1935.08,0.00031232,3]
[368494462,1751190777274,-1632.66,0.00031232,3]
[368494463,1751190777283,-1569.37,0.00031232,3]
[368494464,1751190777292,-2530.56,0.00031232,3]
[368494465,1751190777302,-2452.49,0.00031232,3]
[368494466,1751190777311,-206.81747786,0.00031232,3]
[368494467,1751190777320,-1489.85,0.00031232,3]
[368494468,1751190777330,-490.0,0.00031232,3]
[368494469,1751190777339,-1193.32,0.00031232,3]
[368494470,1751190777348,-2419.87,0.00031232,3]
[368494471,1751190777357,-1993.35,0.00031232,3]
[368494472,1751190777366,-267.85602727,0.00031232,3]
[368494473,1751190777375,-588.25,0.00031232,3]
[368494474,1751190777384,-3522.67,0.00031232,3]
[368494475,1751190777393,-1690.76,0.00031232,3]
[368494476,1751190777403,-2018.73,0.00031232,3]
[368494477,1751190777412,-490.0,0.00031232,3]
[368494478,1751190777420,-2069.08,0.00031232,3]
[368494479,1751190777429,-161.94853282,0.00031232,3]
[368494480,1751190777438,-2243.02,0.00031232,3]
[368494481,1751190777447,-1621.16,0.00031232,3]
[368494482,1751190777456,-2803.72,0.00031232,3]
[368494483,1751190777465,-490.0,0.00031232,3]
[368494484,1751190777477,-697.23,0.00031232,3]
[368494485,1751190777486,-1156.58,0.00031232,3]
[368494486,1751190777495,-490.0,0.00031232,3]
[368494487,1751190777504,-2344.83,0.00031232,3]
[368494488,1751190777513,-2317.49,0.00031232,3]
[368494489,1751190777522,-490.0,0.00031232,3]
[368494490,1751190777531,-1455.99,0.00031232,3]
[368494491,1751190777540,-896.46,0.00031232,3]
[368494492,1751190777549,-2847.6,0.00031232,3]
[368494493,1751190777558,-1697.89,0.00031232,3]
[368494494,1751190777567,-490.0,0.00031232,3]
[368494495,1751190777576,-1196.0,0.00031232,3]
[368494496,1751190777585,-208.99766803,0.00031232,3]
[368494497,1751190777594,-4069.2,0.00031232,3]
[368494498,1751190777603,-1620.63,0.00031232,3]
[368494499,1751190777612,-24643.72,0.00031232,3]
[368494500,1751190777621,-498.07,0.00031232,3]
[368494501,1751190777629,-3762.98,0.00031232,3]
[368494502,1751190777638,-499.82,0.00031232,3]
[368494503,1751190777647,-1069.72,0.00031232,3]
[368494504,1751190777656,-725.1,0.00031232,3]
[368494505,1751190777665,-4782.64,0.00031232,3]
[368494506,1751190777674,-1100.83,0.00031232,3]
[368494507,1751190777682,-1824.13,0.00031232,3]
[368494508,1751190777691,-2504.1,0.00031232,3]
[368494509,1751190777700,-1607.63,0.00031232,3]
[368494510,1751190777708,-1132.25,0.00031232,3]
[368494511,1751190777717,-11678.75,0.00031232,3]
[368494512,1751190777726,-3607.16,0.00031232,3]
[368494513,1751190777735,-674.39,0.00031232,3]
[368494514,1751190777744,-2388.21,0.00031232,3]
[368494515,1751190777754,-490.0,0.00031232,3]
[368494516,1751190777764,-632.01,0.00031232,3]
[368494517,1751190777773,-3749.55,0.00031232,3]
[368494518,1751190777783,-2478.96,0.00031232,3]
[368494519,1751190777793,-536.71,0.00031232,3]
[368494520,1751190777804,-1798.53,0.00031232,3]
[368494521,1751190777814,-490.0,0.00031232,3]
[368494522,1751190777823,-3221.5,0.00031232,3]
[368494523,1751190777833,-1629.68,0.00031232,3]
[368494524,1751190777842,-1535.71,0.00031232,3]
[368494525,1751190777851,-548.24,0.00031232,3]
[368494526,1751190777861,-2263.99,0.00031232,3]
[368494527,1751190777871,-1677.32,0.00031232,3]
[368494528,1751190777880,-6718.76,0.00031232,3]
[368494529,1751190777890,-1322.58,0.00031232,3]
[368494530,1751190777899,-18559.3,0.00031232,3]
[368494531,1751190777909,-857.93,0.00031232,3]
[368494532,1751190777919,-553.18,0.00031232,3]
[368494533,1751190777931,-490.0,0.00031232,3]
[368494534,1751190777942,-2586.37,0.00031232,3]
[368494535,1751190777951,-987.81,0.00031232,3]
[368494536,1751190777960,-1263.2,0.00031232,3]
[368494537,1751190777970,-698.11,0.00031232,3]
[368494538,1751190777979,-3862.63,0.00031232,3]
[368494539,1751190777989,-826.74,0.00031232,3]
[368494540,1751190777998,-1943.16,0.00031232,3]
[368494541,1751190778007,-4122.27,0.00031232,3]
[368494542,1751190778017,-490.0,0.00031232,3]
[368494543,1751190778026,-490.0,0.00031232,3]
[368494544,1751190778036,-490.0,0.00031232,3]
[368494545,1751190778045,-490.0,0.00031232,3]
[368494546,1751190778054,-490.0,0.00031232,3]
[368494547,1751190778064,-1385.92,0.00031232,3]
[368494548,1751190778073,-1552.69,0.00031232,3]
[368494549,1751190778082,-5320.1,0.00031232,3]
[368494550,1751190778091,-490.0,0.00031232,3]
[368494551,1751190778101,-2723.89,0.00031232,3]
[368494552,1751190778110,-620.43,0.00031232,3]
[368494553,1751190778119,-4529.09,0.00031232,3]
[368494554,1751190778135,-1307.14,0.00031232,3]
[368494555,1751190778144,-2347.57,0.00031232,3]
[368494556,1751190778153,-2896.25,0.00031232,3]
[368494557,1751190778163,-1874.39,0.00031232,3]
[368494558,1751190778173,-2024.74,0.00031232,3]
[368494559,1751190778182,-5682.59,0.00031232,3]
[368494560,1751190778191,-919.31,0.00031232,3]
[368494561,1751190778201,-490.0,0.00031232,3]
[368494562,1751190778211,-2104.31,0.00031232,3]
[368494563,1751190778220,-1968.64,0.00031232,3]
[368494564,1751190778229,-626.13,0.00031232,3]
[368494565,1751190778239,-2133.2,0.00031232,3]
[368494566,1751190778249,-1770.11,0.00031232,3]
[368494567,1751190778257,-1764.06,0.00031232,3]
[368494568,1751190778267,-700.52,0.00031232,3]
[368494569,1751190778277,-1730.13,0.00031232,3]
[368494570,1751190778286,-490.0,0.00031232,3]
[368494571,1751190778295,-2165.68,0.00031232,3]
[368494572,1751190778412,-513.72,0.00031232,3]
[368494573,1751190778428,-883.4,0.00031232,3]
[368494574,1751190778438,-1926.75,0.00031232,3]
[368494575,1751190778448,-5921.12,0.00031232,3]
[368494576,1751190778460,-490.0,0.00031232,3]
[368494577,1751190778470,-2141.99,0.00031232,3]
[368494578,1751190778479,-2043.04,0.00031232,3]
[368494579,1751190778488,-490.0,0.00031232,3]
[368494580,1751190778499,-631.01,0.00031232,3]
[368494581,1751190778509,-855.58,0.00031232,3]
[368494582,1751190778518,-696.89,0.00031232,3]
[368494583,1751190778529,-1625.9,0.00031232,3]
[368494584,1751190778539,-3241.41,0.00031232,3]
[368494585,1751190778550,-3866.16,0.00031232,3]
[368494586,1751190778560,-2087.25,0.00031232,3]
[368494587,1751190778570,-1891.34,0.00031232,3]
[368494588,1751190778580,-4543.11,0.00031232,3]
[368494589,1751190778590,-569.82,0.00031232,3]
[368494590,1751190778599,-1931.12,0.00031232,3]
[368494591,1751190778610,-490.0,0.00031232,3]
[368494592,1751190778620,-1948.57,0.00031232,3]
[368494593,1751190778630,-1323.16,0.00031232,3]
[368494594,1751190778639,-971.22,0.00031232,3]
[368494595,1751190778650,-6890.33,0.00031232,3]
[368494596,1751190778659,-490.0,0.00031232,3]
[368494597,1751190778669,-1740.09,0.00031232,3]
[368494598,1751190778679,-1509.17,0.00031232,3]
[368494599,1751190778688,-961.28,0.00031232,3]
[368494600,1751190778698,-2526.68,0.00031232,3]
[368494601,1751190778707,-1923.32,0.00031232,3]
[368494602,1751190778718,-802.0,0.00031233,3]
[368494603,1751190778728,-500.0,0.00031233,3]
[368494604,1751190778738,-500.0,0.00031233,3]
[368494605,1751190778747,-453.0,0.00031233,3]
[368494606,1751190778757,-2043.46130184,0.00031245,24]
[368494607,1751190778768,-150.0,0.00031249,7]
[368494608,1751190778777,-150.0,0.00031263,7]
[368494609,1751190778787,-312.68872601,0.00031273,7]
[368494610,1751190778796,-294.80816015,0.00031273,7]
[368494611,1751190778806,-150.0,0.00031291,7]
[368494612,1751190778816,-150.0,0.00031293,7]
[368494613,1751190778826,-400.70960989,0.00031297,2]
[368494614,1751190778835,-150.0,0.00031312,7]
[368494615,1751190778844,-523.0,0.00031313,2]
[368494616,1751190778854,-312.68872601,0.00031339,7]
[368494617,1751190778863,-294.80816015,0.00031339,7]
[368494618,1751190778873,-150.0,0.00031349,7]
[368494619,1751190778883,-2351.0,0.00031362,3]
[368494620,1751190778893,-150.0,0.00031371,7]
[368494621,1751190778903,-231.28369723,0.00031388,2]
[368494622,1751190778913,-150.0,0.00031389,7]
[368494624,1751190778922,-150.0,0.00031391,7]
[368494625,1751190778931,-27937.83300961,0.000314,30]
[368494626,1751190778942,-312.68872601,0.00031405,7]
[368494628,1751190778952,-294.80816015,0.00031405,7]
[368494629,1751190778962,-171.22915612,0.00031406,2]
[368494630,1751190778973,-25708.31185902,0.00031406,2]
[368494631,1751190778983,-19080.53445325,0.0003143,4]
[368494632,1751190778993,-150.0,0.00031434,7]
[368494633,1751190779004,-150.0,0.00031441,7]
[368494634,1751190779016,-150.0,0.00031447,7]
[368494635,1751190779029,-150.0,0.00031452,7]
[368494636,1751190779042,-2043.46130184,0.00031452,25]
[368494637,1751190779054,-312.68872601,0.00031472,7]
[368494638,1751190779064,-294.80816015,0.00031472,7]
[368494639,1751190779075,-150.0,0.00031489,7]
[368494640,1751190779086,-4000.0,0.000315,4]
[368494641,1751190779096,-1528.36,0.00031506,9]
[368494642,1751190779106,-600.46,0.00031506,3]
[368494643,1751190779117,-542.33,0.00031506,3]
[368494644,1751190779128,-847.37,0.00031506,3]
[368494645,1751190779140,-490.0,0.00031506,3]
[368494646,1751190779150,-490.0,0.00031506,3]
[368494647,1751190779160,-490.0,0.00031506,3]
[368494648,1751190779172,-490.0,0.00031506,3]
[368494649,1751190779183,-490.0,0.00031506,3]
[368494650,1751190779195,-948.9,0.00031506,3]
[368494651,1751190779207,-667.1,0.00031506,3]
[368494652,1751190779219,-600.0,0.00031506,7]
[368494653,1751190779230,-513.09,0.00031506,3]
[368494654,1751190779242,-978.74,0.00031506,3]
[368494655,1751190779255,-642.29,0.00031506,3]
[368494656,1751190779272,-490.0,0.00031506,3]
[368494657,1751190779284,-490.0,0.00031506,3]
[368494658,1751190779296,-1186.44,0.00031506,3]
[368494659,1751190779307,-490.0,0.00031506,3]
[368494660,1751190779318,-490.0,0.00031506,3]
[368494661,1751190779330,-2554.302964,0.00031506,3]
[368494662,1751190779340,-490.0,0.00031506,3]
[368494663,1751190779351,-853.16,0.00031506,3]
[368494664,1751190779364,-2816.157543,0.00031506,3]
[368494665,1751190779376,-2200.380726,0.00031506,3]
[368494666,1751190779387,-151.959343,0.00031506,3]
[368494667,1751190779398,-392.680419,0.00031506,3]
[368494668,1751190779409,-500.85,0.00031506,3]
[368494669,1751190779419,-490.0,0.00031506,3]
[368494670,1751190779429,-887.72,0.00031506,3]
[368494671,1751190779439,-556.18,0.00031506,3]
[368494672,1751190779448,-153.102854,0.00031506,3]
[368494673,1751190779458,-656.47,0.00031506,3]
[368494674,1751190779467,-571.97,0.00031506,3]
[368494675,1751190779477,-490.0,0.00031506,3]
[368494676,1751190779489,-858.42,0.00031506,3]
[368494677,1751190779498,-490.0,0.00031506,3]
[368494678,1751190779508,-1167.71,0.00031506,3]
[368494679,1751190779521,-490.0,0.00031506,3]
[368494680,1751190779531,-648.74,0.00031506,3]
[368494681,1751190779540,-167.777922,0.00031506,3]
[368494682,1751190779549,-642.42,0.00031506,3]
[368494683,1751190779560,-523.68,0.00031506,3]
[368494684,1751190779569,-490.0,0.00031506,3]
[368494685,1751190779579,-625.75,0.00031506,3]
[368494686,1751190779589,-500.12360609,0.00031506,3]
[368494687,1751190779598,-490.0,0.00031506,3]
[368494688,1751190779607,-490.0,0.00031506,3]
[368494689,1751190779617,-490.0,0.00031506,3]
[368494690,1751190779627,-1529.36,0.00031506,3]
[368494691,1751190779637,-725.47,0.00031506,3]
[368494692,1751190779647,-167.777922,0.00031506,3]
[368494693,1751190779658,-490.0,0.00031506,3]
[368494694,1751190779668,-490.0,0.00031506,3]
[368494695,1751190779679,-1837.93,0.00031506,3]
[368494696,1751190779690,-961.81,0.00031506,3]
[368494697,1751190779700,-677.59,0.00031506,3]
[368494698,1751190779712,-490.0,0.00031506,3]
[368494699,1751190779722,-490.0,0.00031506,3]
[368494700,1751190779732,-490.0,0.00031506,3]
[368494701,1751190779743,-811.6,0.00031506,3]
[368494702,1751190779754,-701.76,0.00031506,3]
[368494703,1751190779769,-490.0,0.00031506,3]
[368494704,1751190779780,-801.55,0.00031506,3]
[368494705,1751190779792,-490.0,0.00031506,3]
[368494706,1751190779805,-493.56,0.00031506,3]
[368494707,1751190779817,-490.0,0.00031506,3]
[368494708,1751190779827,-590.68,0.00031506,3]
[368494709,1751190779839,-490.0,0.00031506,3]
[368494710,1751190779851,-490.0,0.00031506,3]
[368494711,1751190779863,-740.41,0.00031506,3]
[368494712,1751190779875,-930.82,0.00031506,3]
[368494713,1751190779886,-1134.82,0.00031506,3]
[368494714,1751190779897,-629.08,0.00031506,3]
[368494715,1751190779909,-507.56,0.00031506,3]
[368494716,1751190779921,-508.09,0.00031506,3]
[368494717,1751190779932,-1395.58,0.00031506,3]
[368494718,1751190779944,-596.83,0.00031506,3]
[368494719,1751190779955,-516.57,0.00031506,3]
[368494720,1751190779966,-1527.96,0.00031506,3]
[368494721,1751190779979,-2015.14,0.00031506,3]
[368494722,1751190779991,-615.0,0.00031506,3]
[368494723,1751190780003,-490.0,0.00031506,3]
[368494724,1751190780019,-889.47,0.00031506,3]
[368494725,1751190780033,-2302.9,0.00031506,3]
[368494726,1751190780044,-945.27,0.00031506,3]
[368494727,1751190780055,-743.01,0.00031506,3]
[368494728,1751190780067,-643.27,0.00031506,3]
[368494729,1751190780079,-1940.61,0.00031506,3]
[368494730,1751190780089,-1952.95,0.00031506,3]
[368494731,1751190780100,-1201.96,0.00031506,3]
[368494732,1751190780110,-1310.06,0.00031506,3]
[368494733,1751190780120,-369.84,0.00031506,3]
[368494734,1751190780129,-1125.22,0.00031506,3]
[368494735,1751190780139,-490.0,0.00031506,3]
[368494736,1751190780148,-1224.35,0.00031506,3]
[368494737,1751190780158,-976.06,0.00031506,3]
[368494738,1751190780168,-749.58,0.00031506,3]
[368494739,1751190780180,-1824.88,0.00031506,3]
[368494740,1751190780190,-603.75,0.00031506,3]
[368494741,1751190780199,-957.88,0.00031506,3]
[368494742,1751190780209,-490.0,0.00031506,3]
[368494743,1751190780219,-490.0,0.00031506,3]
[368494744,1751190780229,-490.0,0.00031506,3]
[368494745,1751190780239,-538.77,0.00031506,3]
[368494746,1751190780249,-776.78,0.00031506,3]
[368494747,1751190780258,-960.82,0.00031506,3]
[368494748,1751190780269,-894.84,0.00031506,3]
[368494749,1751190780279,-490.0,0.00031506,3]
[368494750,1751190780288,-1904.77,0.00031506,3]
[368494751,1751190780298,-490.0,0.00031506,3]
[368494752,1751190780307,-1462.39,0.00031506,3]
[368494753,1751190780317,-2300.89,0.00031506,3]
[368494754,1751190780327,-490.0,0.00031506,3]
[368494755,1751190780337,-650.78,0.00031506,3]
[368494756,1751190780346,-2228.41,0.00031506,3]
[368494757,1751190780356,-694.52,0.00031506,3]
[368494758,1751190780366,-490.0,0.00031506,3]
[368494759,1751190780376,-490.0,0.00031506,3]
[368494760,1751190780385,-1649.19,0.00031506,3]
[368494761,1751190780394,-2026.94,0.00031506,3]
[368494762,1751190780404,-490.0,0.00031506,3]
[368494763,1751190780413,-843.7,0.00031506,3]
[368494764,1751190780424,-490.0,0.00031506,3]
[368494765,1751190780433,-490.0,0.00031506,3]
[368494766,1751190780442,-490.0,0.00031506,3]
[368494767,1751190780451,-490.0,0.00031506,3]
[368494768,1751190780462,-571.61,0.00031506,3]
[368494769,1751190780472,-1556.08,0.00031506,3]
[368494770,1751190780482,-490.0,0.00031506,3]
[368494771,1751190780491,-896.97,0.00031506,3]
[368494772,1751190780501,-594.67,0.00031506,3]
[368494773,1751190780510,-1147.84,0.00031506,3]
[368494774,1751190780521,-1027.62,0.00031506,3]
[368494775,1751190780531,-707.16,0.00031506,3]
[368494776,1751190780541,-880.72,0.00031506,3]
[368494777,1751190780550,-792.35,0.00031506,3]
[368494778,1751190780561,-490.0,0.00031506,3]
[368494779,1751190780571,-490.0,0.00031506,3]
[368494780,1751190780581,-780.47,0.00031506,3]
[368494781,1751190780590,-560.33,0.00031506,3]
[368494782,1751190780601,-944.59,0.00031506,3]
[368494783,1751190780612,-1653.81,0.00031506,3]
[368494784,1751190780622,-525.19,0.00031506,3]
[368494785,1751190780632,-1620.77,0.00031506,3]
[368494786,1751190780641,-1900.77,0.00031506,3]
[368494787,1751190780651,-509.89881318,0.00031506,3]
[368494788,1751190780661,-521.24,0.00031506,3]
[368494789,1751190780670,-1487.61,0.00031506,3]
[368494790,1751190780680,-1556.78,0.00031506,3]
[368494791,1751190780689,-1633.03,0.00031506,3]
[368494792,1751190780698,-1046.71,0.00031506,3]
[368494793,1751190780708,-506.3,0.00031506,3]
[368494796,1751190780985,-514.5,0.00031506,3]
[368494797,1751190781028,-490.0,0.00031506,3]
[368494798,1751190781038,-1936.24,0.00031506,3]
[368494799,1751190781048,-2262.43,0.00031506,3]
[368494800,1751190781059,-665.95,0.00031506,3]
[368494801,1751190781069,-2474.6,0.00031506,3]
[368494802,1751190781079,-1268.88,0.00031506,3]
[368494803,1751190781088,-689.16,0.00031506,3]
[368494804,1751190781097,-1400.07,0.00031506,3]
[368494805,1751190781107,-858.86,0.00031506,3]
[368494806,1751190781116,-730.59,0.00031506,3]
[368494807,1751190781127,-1700.28,0.00031506,3]
[368494808,1751190781137,-666.33,0.00031506,3]
[368494809,1751190781146,-818.45,0.00031506,3]
[368494810,1751190781156,-1024.15,0.00031506,3]
[368494811,1751190781166,-709.17,0.00031506,3]
[368494812,1751190781176,-1027.52,0.00031506,3]
[368494813,1751190781186,-2038.87,0.00031506,3]
[368494814,1751190781196,-199.08838361,0.00031506,3]
[368494815,1751190781206,-534.02,0.00031506,3]
[368494816,1751190781216,-2394.84,0.00031506,3]
[368494817,1751190781226,-167.1803824,0.00031506,3]
[368494818,1751190781235,-1561.51,0.00031506,3]
[368494819,1751190781245,-1167.05,0.00031506,3]
[368494820,1751190781255,-899.19,0.00031506,3]
[368494821,1751190781266,-935.31,0.00031506,3]
[368494822,1751190781275,-771.06,0.00031506,3]
[368494823,1751190781285,-610.33,0.00031506,3]
[368494824,1751190781295,-490.0,0.00031506,3]
[368494825,1751190781304,-1503.84,0.00031506,3]
[368494826,1751190781315,-1626.28,0.00031506,3]
[368494827,1751190781325,-566.4,0.00031506,3]
[368494828,1751190781335,-715.86,0.00031506,3]
[368494829,1751190781345,-934.93,0.00031506,3]
[368494830,1751190781354,-516.29,0.00031506,3]
[368494831,1751190781364,-589.35,0.00031506,3]
[368494832,1751190781374,-2211.02,0.00031506,3]
[368494833,1751190781383,-1313.26,0.00031506,3]
[368494834,1751190781393,-878.98,0.00031506,3]
[368494835,1751190781403,-2018.3,0.00031506,3]
[368494836,1751190781413,-1272.1,0.00031506,3]
[368494837,1751190781422,-1320.46,0.00031506,3]
[368494838,1751190781432,-2254.95,0.00031506,3]
[368494839,1751190781441,-490.0,0.00031506,3]
[368494840,1751190781451,-490.0,0.00031506,3]
[368494841,1751190781460,-801.49,0.00031506,3]
[368494842,1751190781471,-793.92,0.00031506,3]
[368494843,1751190781480,-1409.04,0.00031506,3]
[368494844,1751190781494,-566.98,0.00031506,3]
[368494845,1751190781504,-855.39,0.00031506,3]
[368494846,1751190781514,-520.23,0.00031506,3]
[368494847,1751190781524,-503.31,0.00031506,3]
[368494848,1751190781533,-1383.19,0.00031506,3]
[368494849,1751190781542,-490.0,0.00031506,3]
[368494850,1751190781552,-907.17,0.00031506,3]
[368494851,1751190781561,-1733.55,0.00031506,3]
[368494852,1751190781571,-1411.93,0.00031506,3]
[368494853,1751190781580,-490.0,0.00031506,3]
[368494854,1751190781590,-490.0,0.00031506,3]
[368494855,1751190781599,-1161.29,0.00031506,3]
[368494856,1751190781609,-490.0,0.00031506,3]
[368494857,1751190781619,-648.19,0.00031506,3]
[368494858,1751190781629,-395.13784468,0.00031506,3]
[368494859,1751190781639,-664.2,0.00031506,3]
[368494860,1751190781648,-492.59,0.00031506,3]
[368494861,1751190781657,-1411.98,0.00031506,3]
[368494862,1751190781667,-490.0,0.00031506,3]
[368494863,1751190781676,-1476.05,0.00031506,3]
[368494864,1751190781686,-490.0,0.00031506,3]
[368494865,1751190781695,-2483.68,0.00031506,3]
[368494866,1751190781704,-622.78,0.00031506,3]
[368494867,1751190781714,-2320.44,0.00031506,3]
[368494868,1751190781723,-1539.15,0.00031506,3]
[368494869,1751190781733,-894.95,0.00031506,3]
[368494870,1751190781742,-701.41,0.00031506,3]
[368494871,1751190781751,-526.1,0.00031506,3]
[368494872,1751190781760,-1005.08,0.00031506,3]
[368494873,1751190781771,-1199.97,0.00031506,3]
[368494874,1751190781781,-1032.78,0.00031506,3]
[368494875,1751190781791,-549.61,0.00031506,3]
[368494876,1751190781800,-1283.76,0.00031506,3]
[368494877,1751190781810,-490.0,0.00031506,3]
[368494878,1751190781820,-492.31795187,0.00031506,3]
[368494879,1751190781829,-901.15,0.00031506,3]
[368494880,1751190781839,-545.6,0.00031506,3]
[368494881,1751190781848,-841.45,0.00031506,3]
[368494882,1751190781858,-525.0,0.00031506,3]
[368494883,1751190781868,-908.9,0.00031506,3]
[368494884,1751190781878,-1956.7,0.00031506,3]
[368494885,1751190781887,-1559.17,0.00031506,3]
[368494886,1751190781897,-490.0,0.00031506,3]
[368494887,1751190781906,-772.36,0.00031506,3]
[368494888,1751190781916,-1731.31,0.00031506,3]
[368494889,1751190781926,-490.0,0.00031506,3]
[368494890,1751190781935,-1241.41,0.00031506,3]
[368494891,1751190781946,-490.0,0.00031506,3]
[368494892,1751190781956,-2257.75,0.00031506,3]
[368494893,1751190781966,-1736.54,0.00031506,3]
[368494894,1751190781976,-2325.03,0.00031506,3]
[368494895,1751190781986,-613.43,0.00031506,3]
[368494896,1751190781995,-1117.78,0.00031506,3]
[368494897,1751190782005,-896.69,0.00031506,3]
[368494898,1751190782015,-998.0,0.00031506,3]
[368494899,1751190782025,-1022.6,0.00031506,3]
[368494900,1751190782035,-1382.19,0.00031506,3]
[368494901,1751190782045,-1087.69,0.00031506,3]
[368494902,1751190782054,-937.32,0.00031506,3]
[368494903,1751190782064,-490.0,0.00031506,3]
[368494904,1751190782074,-2003.29,0.00031506,3]
[368494905,1751190782084,-296.46325955,0.00031506,3]
[368494906,1751190782094,-1073.82,0.00031506,3]
[368494907,1751190782104,-1428.66,0.00031506,3]
[368494908,1751190782113,-906.56,0.00031506,3]
[368494909,1751190782124,-490.0,0.00031506,3]
[368494910,1751190782134,-751.94,0.00031506,3]
[368494911,1751190782143,-1284.2,0.00031506,3]
[368494912,1751190782153,-995.73,0.00031506,3]
[368494913,1751190782163,-730.89,0.00031506,3]
[368494914,1751190782172,-490.0,0.00031506,3]
[368494915,1751190782182,-490.0,0.00031506,3]
[368494916,1751190782191,-490.0,0.00031506,3]
[368494917,1751190782201,-490.0,0.00031506,3]
[368494918,1751190782211,-3819.49,0.00031506,3]
[368494919,1751190782220,-614.58,0.00031506,3]
[368494920,1751190782230,-2099.43,0.00031506,3]
[368494921,1751190782240,-591.09,0.00031506,3]
[368494922,1751190782250,-279.10943798,0.00031506,3]
[368494923,1751190782260,-1763.09,0.00031506,3]
[368494924,1751190782270,-930.34,0.00031506,3]
[368494925,1751190782280,-1553.22,0.00031506,3]
[368494926,1751190782290,-1288.37,0.00031506,3]
[368494927,1751190782299,-490.0,0.00031506,3]
[368494928,1751190782309,-935.65,0.00031506,3]
[368494929,1751190782318,-587.32,0.00031506,3]
[368494930,1751190782328,-490.0,0.00031506,3]
[368494931,1751190782337,-293.36689269,0.00031506,3]
[368494932,1751190782347,-4450.47,0.00031506,3]
[368494933,1751190782356,-490.0,0.00031506,3]
[368494934,1751190782366,-528.19,0.00031506,3]
[368494935,1751190782376,-959.78,0.00031506,3]
[368494936,1751190782386,-490.0,0.00031506,3]
[368494937,1751190782397,-766.16,0.00031506,3]
[368494938,1751190782407,-1454.99,0.00031506,3]
[368494939,1751190782416,-490.0,0.00031506,3]
[368494940,1751190782426,-1177.8,0.00031506,3]
[368494941,1751190782435,-1065.99,0.00031506,3]
[368494942,1751190782445,-921.89,0.00031506,3]
[368494943,1751190782455,-1049.98,0.00031506,3]
[368494944,1751190782465,-490.0,0.00031506,3]
[368494945,1751190782480,-603.29,0.00031506,3]